bitfinex-derivatives/quotes_ETHF0:USTF0_20251103
["timestamp","ask_amount","ask_price","bid_price","bid_amount"]
[1762195806453,0.00302903,3641.7,3641.0,4.647]
[1762195806454,0.89232,3641.1,3641.0,3.2078]
[1762195806852,1.23597,3641.4,3640.8,0.49447]
[1762195806853,0.49445,3640.9,3640.8,0.49446]
[1762195807050,0.2258,3641.5,3640.9,0.86705]
[1762195807248,0.49444,3641.0,3640.9,0.86705]
[1762195807454,0.49444,3641.0,3640.9,0.3726]
[1762195807857,0.72024,3641.0,3640.9,0.3726]
[1762195808056,0.49444,3641.0,3640.9,0.3726]
[1762195808353,0.49444,3641.0,3640.9,0.86705]
[1762195808656,0.2258,3641.5,3641.2,0.86701]
[1762195808860,0.49436,3641.6,3641.4,0.3726]
[1762195809157,0.00302903,3641.7,3641.6,0.86696]
[1762195809455,1.46141,3642.5,3642.0,0.49429]
[1762195809456,0.49427,3642.3,3642.0,0.49429]
[1762195809656,0.49427,3642.3,3641.7,3.2078]
[1762195809860,0.49428,3642.2,3641.9,0.49431]
[1762195810061,0.49426,3642.3,3642.0,0.4943]
[1762195810456,0.49428,3642.2,3642.0,0.4943]
[1762195810658,0.49745422,3642.3,3642.1,0.49428]
[1762195810859,0.00318422,3642.3,3642.0,0.8669]
[1762195811060,0.00318422,3642.3,3642.1,0.49429]
[1762195811061,0.49746422,3642.3,3642.1,0.49429]
[1762195811263,0.49429,3642.2,3642.0,0.4943]
[1762195811462,0.00318422,3642.3,3642.1,0.49428]
[1762195811663,0.49428,3642.2,3641.9,0.4943]
[1762195811961,0.49428,3642.2,3642.0,0.4943]
[1762195812559,1.46549512,3644.4,3642.5,0.3726]
[1762195812762,0.7199,3643.5,3643.1,0.49415]
[1762195812960,0.49412,3643.4,3643.0,3.90507]
[1762195813360,0.49413,3643.3,3643.2,0.3726]
[1762195813661,0.49612254,3643.3,3643.2,0.37540567]
[1762195813862,0.89402254,3643.3,3643.2,0.00280567]
[1762195815767,0.00199254,3643.3,3643.2,0.37540567]
[1762195816064,0.494,3644.3,3643.9,0.86995]
[1762195816264,3.2078,3644.9,3644.7,0.49394]
[1762195816666,0.3777,3645.3,3644.7,3.2078]
[1762195816962,0.38081746,3645.3,3644.7,3.2078]
[1762195817361,0.38081746,3645.3,3645.1,0.49389]
[1762195817566,0.38081746,3645.3,3644.7,3.2078]
[1762195817567,0.49388,3645.2,3644.7,3.2078]
[1762195817769,0.49388,3645.2,3644.8,0.49393]
[1762195817965,0.49388,3645.2,3644.9,0.49391]
[1762195818164,0.49698746,3645.3,3644.9,0.49391]
[1762195818470,0.87163,3644.8,3644.7,3.2078]
[1762195818867,0.49399,3644.4,3644.0,0.71264]
[1762195819171,0.2203,3644.0,3643.7,3.2078]
[1762195819566,0.49401,3644.2,3644.1,0.3759]
[1762195819969,0.2203,3644.5,3643.7,3.2078]
[1762195820274,0.2203,3644.5,3643.7,3.70188]
[1762195820669,0.2203,3644.5,3643.8,0.49406]
[1762195820970,0.2203,3644.5,3644.1,0.49402]
[1762195821272,0.2203,3644.5,3643.7,3.2078]
[1762195821670,0.49406,3643.9,3643.7,3.2078]
[1762195821870,0.598,3643.8,3643.7,3.2078]
[1762195822468,0.2203,3643.8,3643.3,3.2078]
[1762195822671,0.49411,3643.5,3643.3,3.2078]
[1762195822967,0.2203,3643.8,3643.3,3.70193]
[1762195823168,0.49405,3643.9,3643.3,3.2078]
[1762195823368,0.49409,3643.6,3643.5,0.3759]
[1762195824371,0.49408,3643.8,3643.5,0.87]
[1762195824672,0.49408,3643.7,3643.5,0.87]
[1762195824976,0.49409,3643.6,3643.5,0.87]
[1762195825163,0.49409,3643.6,3643.5,0.3759]
[1762195827477,0.49412,3643.4,3643.3,0.49413]
[1762195827775,0.4941,3643.6,3643.5,0.49411]
[1762195827975,3.2078,3644.4,3643.9,0.3651]
[1762195828284,3.2078,3644.4,3643.5,0.1584]
[1762195828285,0.49404,3644.1,3644.0,0.49404]
[1762195828477,0.494,3644.3,3643.7,13.1038]
[1762195828775,0.2203,3644.5,3644.0,0.49404]
[1762195829074,0.49402,3644.2,3644.1,0.49402]
[1762195829379,0.49403,3644.1,3644.0,0.49404]
[1762195829577,0.2203,3644.5,3643.8,1.23517]
[1762195829773,3.2078,3644.9,3644.1,3.2078]
[1762195829976,3.2078,3644.9,3644.8,0.49393]
[1762195830276,0.7142,3645.0,3644.9,0.49392]
[1762195830476,0.2203,3645.0,3644.5,3.2078]
[1762195830777,0.49394,3644.8,3644.7,0.49394]
[1762195831078,0.2203,3645.0,3644.8,0.49393]
[1762195831279,0.49392,3644.9,3644.8,0.49393]
[1762195831777,0.49391,3645.0,3644.9,0.49392]
[1762195831974,0.4939,3645.0,3644.5,3.4176]
[1762195832176,0.49389,3645.1,3644.9,0.49392]
[1762195832571,0.49389,3645.1,3645.0,0.4939]
[1762195832771,0.00311746,3645.3,3644.8,0.49393]
[1762195833078,0.49393,3644.9,3644.6,0.49395]
[1762195833274,0.2029,3645.0,3644.8,0.49393]
[1762195833475,0.6968,3645.0,3644.8,0.49393]
[1762195833772,0.3499,3644.6,3644.1,3.2078]
[1762195833976,0.3499,3643.3,3643.2,0.00280567]
[1762195834879,3.5577,3643.3,3643.2,0.00280567]
[1762195835876,3.5577,3643.3,3643.2,0.36790567]
[1762195835877,3.2078,3643.3,3643.2,0.36790567]
[1762195836074,0.2029,3644.0,3643.6,0.49409]
[1762195836277,0.2029,3644.0,3643.5,0.4941]
[1762195836476,0.2029,3644.0,3643.2,0.00280567]
[1762195836680,0.2029,3644.0,3643.4,0.49411]
[1762195836883,0.2029,3644.0,3643.5,0.4941]
[1762195837378,0.2029,3644.0,3643.5,3.2078]
[1762195837779,0.2029,3644.0,3643.7,0.49407]
[1762195838269,0.2029,3644.0,3643.9,0.49405]
[1762195839079,0.2029,3644.0,3643.5,3.2078]
[1762195839381,0.2029,3644.0,3643.5,3.7019]
[1762195839682,0.2029,3644.0,3643.5,3.2078]
[1762195840475,0.2029,3644.0,3643.5,3.70191]
[1762195840680,0.2029,3644.0,3643.5,3.2078]
[1762195841374,0.2029,3644.0,3643.5,3.7019]
[1762195841777,0.2029,3644.0,3643.6,0.49409]
[1762195842178,0.49408,3643.7,3643.6,0.85919]
[1762195843790,0.49409,3643.6,3643.5,3.7019]
[1762195844087,0.49409,3643.6,3643.5,3.2078]
[1762195844586,0.84399,3643.6,3643.5,3.2078]
[1762195844886,0.49409,3643.6,3643.5,3.2078]
[1762195845586,0.49409,3643.6,3643.5,3.70191]
[1762195846182,0.49409,3643.6,3643.5,4.05281]
[1762195846382,0.49409,3643.6,3643.5,3.5587]
[1762195846582,0.49409,3643.6,3643.5,0.3509]
[1762195846782,0.49413,3643.3,3643.2,0.84784567]
[1762195846981,0.49412,3643.4,3643.3,0.84502]
[1762195847182,0.49412,3643.4,3643.3,0.3509]
[1762195847386,0.49412,3643.4,3643.3,0.84503]
[1762195849087,0.4941,3643.6,3643.5,0.4941]
[1762195849489,0.49412,3643.5,3643.4,0.84502]
[1762195849684,3.2078,3643.8,3643.4,0.3509]
[1762195849984,3.824,3644.1,3644.0,0.84494]
[1762195850186,0.49402,3644.1,3644.0,0.3509]
[1762195850383,0.49404,3644.0,3643.9,0.49405]
[1762195851290,0.49402,3644.1,3644.0,0.84493]
[1762195851491,0.49401,3644.2,3644.1,0.84491]
[1762195852094,3.7018,3644.4,3644.3,0.494]
[1762195852294,0.49402,3644.3,3644.2,0.49401]
[1762195852497,0.49403,3644.2,3644.1,0.84492]
[1762195852691,0.49403,3644.2,3644.1,0.3509]
[1762195853391,0.49403,3644.2,3644.1,0.84492]
[1762195853592,0.2029,3644.5,3644.1,0.84492]
[1762195853793,0.49401,3644.2,3644.1,0.84492]
[1762195855400,0.494,3644.3,3644.2,0.49399]
[1762195857500,0.2029,3644.5,3644.3,0.84488]
[1762195857798,0.49396,3644.6,3644.5,0.3509]
[1762195858499,1.43768,3645.0,3644.0,0.1735]
[1762195858500,1.23479,3644.9,3644.0,0.1735]
[1762195858694,0.49398,3644.4,3644.3,0.84488]
[1762195859097,0.69627,3644.5,3644.4,0.49398]
[1762195859397,0.69627,3644.5,3644.4,0.84488]
[1762195860493,0.49404,3644.0,3643.9,3.2078]
[1762195860697,0.2023,3644.5,3644.1,0.49401]
[1762195861298,0.49399,3644.4,3644.3,0.49398]
[1762195861501,0.2023,3644.5,3644.4,0.49398]
[1762195861705,0.3443,3644.4,3643.8,3.2078]
[1762195862004,0.49403,3644.1,3644.0,0.49402]
[1762195862200,0.49403,3644.1,3644.0,0.84492]
[1762195862593,0.49405,3643.9,3643.8,3.5587]
[1762195862790,0.49405,3643.9,3643.8,3.2078]
[1762195863398,0.83835,3643.9,3643.8,3.2078]
[1762195864900,0.83843,3643.3,3643.2,0.00280567]
[1762195865198,1.48351008,3643.3,3643.2,5.67e-06]
[1762195866004,0.92008008,3643.3,3643.2,0.3509]
[1762195866200,3.2078,3643.9,3643.4,0.49412]
[1762195866394,0.49407,3643.8,3643.1,3.42846948]
[1762195866701,1.23498,3644.4,3643.5,3.4046]
[1762195866702,0.49401,3644.2,3643.5,3.4046]
[1762195867001,0.49401,3644.2,3644.0,0.49403]
[1762195867195,0.494,3644.3,3644.2,0.49401]
[1762195867503,0.49398,3644.4,3644.3,0.3509]
[1762195867711,0.2023,3644.0,3643.5,0.0033855]
[1762195867898,0.49406,3643.9,3643.7,0.49408]
[1762195868093,0.49405,3643.9,3643.6,0.49408]
[1762195868293,0.49405,3643.9,3643.5,3.4079855]
[1762195868294,0.49401,3644.2,3643.5,3.4079855]
[1762195868499,0.494,3644.3,3644.1,0.3509]
[1762195869604,0.49408,3643.7,3643.6,0.3509]
[1762195871295,0.3443,3643.6,3643.5,3.2111855]
[1762195871502,0.3443,3643.6,3643.5,0.0033855]
[1762195871804,0.98908594,3643.6,3643.5,0.0033855]
[1762195872608,0.3443,3643.6,3643.5,0.0033855]
[1762195873400,3.2078,3643.8,3643.5,0.0033855]
[1762195873705,0.49408,3643.7,3643.5,0.0033855]
[1762195874004,0.3443,3643.6,3643.5,0.0033855]
[1762195874703,0.49421,3642.7,3642.6,0.3104]
[1762195874903,0.4942,3642.9,3642.6,0.3104]
[1762195875104,0.4942,3642.8,3642.7,0.3104]
[1762195875302,0.49423,3642.6,3642.5,3.5182]
[1762195875700,0.49680026,3642.6,3642.5,3.52132869]
[1762195875901,0.81280026,3642.6,3642.5,3.21092869]
[1762195877412,0.81280026,3642.6,3642.5,0.00312869]
[1762195878412,0.00257026,3642.6,3642.5,0.00312869]
[1762195878708,0.00257026,3642.6,3642.5,0.31352869]
[1762195879412,0.00257026,3642.6,3642.5,0.89906869]
[1762195879910,0.00257026,3642.6,3642.5,4.10686869]
[1762195881010,0.49415,3643.2,3643.0,0.49416]
[1762195881213,0.1837,3643.5,3643.3,0.49413]
[1762195881414,0.4941,3643.6,3643.5,0.3104]
[1762195882015,0.49615121,3643.6,3643.5,0.3104]
[1762195882209,0.49615121,3643.6,3643.5,0.8045]
[1762195882603,0.00205121,3643.6,3643.5,0.9905]
[1762195882811,0.00205121,3643.6,3643.5,0.8045]
[1762195883006,0.00205121,3643.6,3643.5,0.9905]
[1762195883209,9.886,3644.4,3644.0,0.49404]
[1762195883406,0.2023,3644.5,3644.0,0.49404]
[1762195883608,0.2023,3644.5,3644.1,0.49402]
[1762195883809,0.49401,3644.2,3644.1,0.49402]
[1762195884114,0.49401,3644.2,3643.7,3.2078]
[1762195884313,0.00326003,3644.2,3644.0,0.3104]
[1762195884513,0.00326003,3644.2,3643.7,3.70187]
[1762195884714,0.49406,3643.9,3643.8,0.49406]
[1762195885408,0.00326003,3644.2,3643.7,3.2078]
[1762195885816,0.49406,3643.8,3643.7,3.2078]
[1762195886011,0.81006,3643.8,3643.7,3.2078]
[1762195886317,0.81006,3643.8,3643.7,3.70188]
[1762195888119,0.49406,3643.8,3643.7,3.70188]
[1762195888420,0.78456,3643.8,3643.7,3.2078]
[1762195889518,0.78456,3643.8,3643.7,3.70188]
[1762195889715,0.49405,3644.0,3643.9,0.80465]
[1762195890022,0.49727003,3644.2,3644.1,0.80462]
[1762195891014,0.00326003,3644.2,3644.1,0.80462]
[1762195891417,0.49393,3644.9,3644.6,0.49394]
[1762195891621,3.2078,3645.0,3644.9,0.80451]
[1762195892215,3.3915,3645.5,3645.0,0.3106]
[1762195892610,3.39356045,3645.5,3645.0,0.3106]
[1762195892815,3.39356045,3645.5,3645.0,0.1017]
[1762195893015,0.49385,3645.4,3645.3,0.49386]
[1762195893311,0.00206045,3645.5,3645.4,0.3106]
[1762195893722,0.00206045,3645.5,3645.4,3.5184]
[1762195894021,3.2078,3646.7,3646.3,0.49372]
[1762195894221,3.2078,3646.7,3646.1,3.2078]
[1762195894625,3.2078,3646.7,3646.2,0.49374]
[1762195894822,3.21105479,3646.7,3646.1,3.2078]
[1762195895224,0.49379,3645.9,3645.7,3.2078]
[1762195895525,0.49379,3645.9,3645.8,0.3106]
[1762195895726,0.49376,3646.1,3645.8,0.3106]
[1762195895919,0.49377,3646.0,3645.9,0.3106]
[1762195896120,0.1813,3646.5,3645.7,3.2078]
[1762195896319,0.49382,3645.6,3645.3,3.2109351]
[1762195896524,0.4938,3645.8,3645.4,0.49384]
[1762195896825,0.4938,3645.8,3645.3,3.2109351]
[1762195896826,0.4938,3645.8,3645.5,0.49383]
[1762195897029,3.2078,3646.2,3645.3,3.2109351]
[1762195897327,0.00325479,3646.7,3645.3,3.2109351]
[1762195897328,0.49372,3646.4,3646.1,0.80434]
[1762195897522,0.49373,3646.3,3646.2,0.3106]
[1762195897721,0.49371,3646.5,3646.2,0.80433]
[1762195897920,0.00325479,3646.7,3646.0,0.1864]
[1762195898117,0.00325479,3646.7,3646.2,0.49374]
[1762195898321,0.49371,3646.5,3646.2,0.49374]
[1762195898725,0.00325479,3646.7,3646.6,0.3106]
[1762195899928,0.00325479,3646.7,3646.5,0.68009]
[1762195899929,3.2078,3647.4,3647.3,0.3106]
[1762195900329,0.49355,3647.6,3647.4,0.49357]
[1762195900529,0.49353,3647.8,3647.4,0.49357]
[1762195900736,0.4936,3647.3,3647.0,0.1864]
[1762195901022,0.4936,3647.3,3647.1,0.49361]
[1762195901230,0.49355,3647.6,3647.0,0.1864]
[1762195901527,0.49356,3647.6,3647.2,3.7014]
[1762195901726,0.49355,3647.7,3647.4,0.49358]
[1762195901930,0.00336105,3647.8,3647.5,0.49356]
[1762195902130,0.00336105,3647.8,3647.2,3.2078]
[1762195902324,0.00336105,3647.8,3647.6,0.49354]
[1762195902525,0.00336105,3647.8,3647.7,0.3106]
[1762195903644,0.78404,3647.7,3647.6,3.2078]
[1762195904532,0.49354,3647.7,3647.6,3.2078]
[1762195904734,0.77094,3647.7,3647.6,3.2078]
[1762195905340,0.00336105,3647.8,3647.7,0.77004]
[1762195905747,0.77094,3647.7,3647.6,3.2078]
[1762195906442,0.4936,3647.2,3647.1,3.97792]
[1762195906638,0.4936,3647.2,3647.1,3.4843]
[1762195906837,0.4936,3647.2,3647.1,3.97792]
[1762195907037,0.49359,3647.4,3647.2,0.4936]
[1762195907242,0.49354,3647.7,3647.5,0.77006]
[1762195907444,0.00336105,3647.8,3647.7,0.77004]
[1762195907836,3.1047667,3648.2,3648.1,0.76998]
[1762195908045,2.10734432,3648.2,3648.1,0.76998]
[1762195908648,0.4935,3648.0,3647.8,0.49351]
[1762195908846,0.4935,3648.0,3647.9,0.49351]
[1762195909048,0.0020382,3648.0,3647.9,0.00320891]
[1762195909247,0.4955382,3648.0,3647.9,0.00320891]
[1762195909740,0.9422382,3648.0,3647.9,0.00320891]
[1762195911241,0.4487382,3648.0,3647.9,0.00320891]
[1762195911643,0.9422382,3648.0,3647.9,0.00320891]
[1762195915647,4.7662382,3648.0,3647.1,3.2078]
[1762195915851,0.49373,3646.3,3646.2,3.2078]
[1762195916753,0.77113,3646.3,3646.2,3.20994632]
[1762195917442,0.49373,3646.3,3646.2,3.20994632]
[1762195917648,0.49373,3646.3,3646.2,0.00214632]
[1762195918352,0.77113,3646.3,3646.2,0.00214632]
[1762195919149,1.04959261,3646.3,3646.2,0.00214632]
[1762195919557,0.49394,3644.8,3644.6,3.2078]
[1762195919849,0.494,3644.3,3644.1,3.2078]
[1762195920554,0.2774,3644.2,3644.1,3.21120911]
[1762195920750,0.2774,3644.2,3642.4,1.23562]
[1762195920751,7.4162315,3644.2,3642.4,3.2078]
[1762195921057,0.00343495,3644.3,3642.4,3.2078]
[1762195921058,3.3771,3643.2,3642.4,3.2078]
[1762195921450,0.2774,3642.5,3642.0,0.4943]
[1762195921756,0.2774,3642.5,3642.0,0.49662907]
[1762195922056,3.2078,3642.6,3642.0,0.17502907]
[1762195922557,3.3771,3642.6,3642.0,0.00232907]
[1762195922857,3.4852,3642.1,3642.0,0.00232907]
[1762195923049,3.4852,3642.1,3640.3,3.2078]
[1762195923050,0.1693,3642.0,3640.3,3.2078]
[1762195923252,3.2078,3641.1,3640.5,0.49451]
[1762195923454,0.1693,3641.4,3640.5,0.49451]
[1762195923758,3.2078,3640.7,3640.2,0.1727]
[1762195923946,3.2078,3640.3,3640.2,0.00306222]
[1762195924148,3.4852,3640.3,3640.2,0.00306222]
[1762195924451,3.37954617,3640.7,3640.2,0.00306222]
[1762195924845,3.2078,3640.3,3640.2,0.00306222]
[1762195925553,0.00244617,3640.7,3640.2,0.00306222]
[1762195925749,0.00244617,3640.7,3640.5,0.4945]
[1762195925947,3.2078,3641.6,3640.6,0.2765]
[1762195926147,3.2078,3641.6,3641.4,0.49438]
[1762195926654,3.2078,3641.6,3641.2,0.49441]
[1762195927049,3.2100598,3641.6,3641.0,0.49444]
[1762195927250,3.2100598,3641.6,3640.7,3.2942]
[1762195927456,3.2100598,3641.6,3641.3,0.4944]
[1762195927652,3.2100598,3641.6,3641.4,0.49438]
[1762195927956,0.0022598,3641.6,3641.5,0.2765]
[1762195928356,0.0022598,3641.6,3640.7,0.0864]
[1762195928563,3.2078,3641.4,3640.7,0.0864]
[1762195928856,3.2078,3641.4,3641.2,0.49441]
[1762195929054,3.2078,3641.4,3640.7,0.0864]
[1762195929055,0.0022598,3641.6,3641.5,0.2765]
[1762195929455,0.0022598,3641.6,3641.5,3.4843]
[1762195932457,0.0022598,3641.6,3641.5,3.2078]
[1762195932659,0.4944,3641.4,3641.1,0.49443]
[1762195932961,0.0022598,3641.6,3641.3,0.49439]
[1762195933354,0.0022598,3641.6,3641.4,0.49439]
[1762195933858,0.0022598,3641.6,3641.5,0.2765]
[1762195935853,3.2078,3642.8,3641.5,2.47191]
[1762195936056,3.2078,3643.2,3643.0,0.49417]
[1762195936960,3.21093422,3643.2,3643.0,0.49637581]
[1762195937465,3.70508422,3643.2,3643.0,0.00220581]
[1762195937653,0.49728422,3643.2,3643.0,0.49637581]
[1762195938456,0.49728422,3643.2,3643.0,0.00220581]
[1762195938660,0.81616,3643.1,3643.0,0.00220581]
[1762195939957,0.49426,3642.4,3642.2,3.2078]
[1762195940159,0.49426,3642.4,3641.4,0.1727]
[1762195940160,0.4943,3642.1,3641.9,0.49431]
[1762195940459,0.81631,3642.0,3641.7,3.70214]
[1762195940660,0.49428,3642.2,3641.9,0.49432]
[1762195940961,0.49433,3641.9,3641.7,3.70215]
[1762195941165,0.49433,3641.9,3641.8,0.49434]
[1762195941464,0.49431,3642.0,3641.8,0.49434]
[1762195941653,3.2078,3642.4,3641.9,0.49432]
[1762195941858,0.49431,3642.0,3641.7,3.21057502]
[1762195942168,0.49433,3641.9,3641.8,0.49434]
[1762195942466,0.49431,3642.1,3641.9,0.49432]
[1762195942668,0.49427,3642.3,3642.1,0.4943]
[1762195943170,0.49433,3641.9,3641.7,3.70491502]
[1762195943474,0.49433,3641.9,3641.8,0.49434]
[1762195945068,3.2078,3642.4,3641.9,0.49432]
[1762195945263,0.49428,3642.2,3642.1,0.4943]
[1762195945676,0.4943,3642.1,3642.0,0.49431]
[1762195946163,0.4943,3642.1,3641.7,0.00277502]
[1762195946164,0.49432,3642.0,3641.7,0.00277502]
[1762195946371,0.49433,3641.9,3641.8,0.49434]
[1762195946768,0.81634,3641.8,3641.7,0.00277502]
[1762195947166,1.09757986,3641.8,3641.7,0.00277502]
[1762195948068,1.74520517,3641.8,3641.7,0.00277502]
[1762195949172,0.3044,3640.4,3640.3,3.2078]
[1762195949369,0.49449,3640.7,3640.0,0.21431231]
[1762195949565,1.40999,3641.4,3639.7,0.02747517]
[1762195949566,0.93144835,3640.6,3640.5,4.00762]
[1762195949765,0.28246753,3640.6,3640.5,4.00762]
[1762195949965,0.9315587,3640.6,3640.5,4.00762]
[1762195950162,0.93463089,3640.6,3640.5,4.01058035]
[1762195950771,0.28553972,3640.6,3640.5,4.01058035]
[1762195951071,3.2078,3641.5,3640.9,1.23615]
[1762195951269,0.93155881,3641.4,3641.3,0.49441]
[1762195951469,0.93155881,3641.4,3641.0,1.23613]
[1762195951470,1.10555881,3641.4,3641.0,0.49445]
[1762195951670,0.93155881,3641.3,3641.0,0.49445]
[1762195951874,1.23595881,3641.2,3641.1,0.49443]
[1762195952075,1.23827594,3641.2,3641.1,0.49443]
[1762195952974,0.93387594,3641.2,3641.1,0.49443]
[1762195953176,0.93387594,3641.2,3641.0,0.49445]
[1762195953378,0.93155881,3641.1,3641.0,0.49445]
[1762195954172,0.93155881,3641.1,3641.0,0.79975]
[1762195954874,0.93155881,3641.1,3640.9,3.70225]
[1762195955078,0.93155881,3641.0,3640.9,4.00756]
[1762195955473,0.3044,3642.0,3641.9,0.49433]
[1762195955677,0.64986223,3642.0,3641.9,0.79963]
[1762195956378,0.82386223,3642.0,3641.7,3.2078]
[1762195956575,0.3044,3641.8,3641.7,3.2078]
[1762195956776,3.85766223,3641.8,3640.9,4.44396]
[1762195956976,0.64986223,3641.7,3640.9,3.2078]
[1762195957172,0.64986223,3641.6,3640.9,3.2078]
[1762195957372,1.14424223,3641.5,3641.4,0.49438]
[1762195957573,0.64986223,3641.5,3641.4,0.49438]
[1762195957773,0.64986223,3641.5,3641.4,0.79968]
[1762195958980,1.14424223,3641.5,3641.4,0.49438]
[1762195959970,0.64986223,3641.5,3641.4,0.49438]
[1762195960372,0.64986223,3641.5,3641.0,0.49445]
[1762195960373,0.49443,3641.1,3641.0,0.49445]
[1762195960581,1.14429223,3641.1,3641.0,0.49445]
[1762195961081,0.49447,3640.9,3640.7,0.49448]
[1762195961282,0.64986223,3640.8,3640.7,0.49448]
[1762195961481,1.14433223,3640.8,3640.5,3.70526035]
[1762195961677,0.64986223,3640.7,3640.5,3.21076035]
[1762195961977,1.44876223,3640.6,3640.5,3.70528035]
[1762195962184,0.64986223,3640.6,3640.5,3.70528035]
[1762195962483,0.64986223,3640.6,3640.5,4.01058035]
[1762195964082,0.49448,3640.8,3640.7,0.49449]
[1762195964285,0.64951885,3640.8,3640.7,0.79979]
[1762195964477,0.49444,3641.1,3641.0,0.49443]
[1762195964682,1.14386327,3641.1,3641.0,0.78323]
[1762195965078,0.64942327,3641.1,3641.0,0.78323]
[1762195965279,4.31836,3641.7,3641.0,3.4966]
[1762195965583,0.00289599,3642.0,3641.9,0.49432]
[1762195965782,0.49435,3641.8,3641.6,0.49435]
[1762195966082,0.49435,3641.7,3641.6,0.49435]
[1762195966286,0.18139599,3642.0,3641.7,0.49434]
[1762195966479,0.18139599,3642.0,3641.0,3.2078]
[1762195966480,0.49437,3641.6,3641.0,3.2078]
[1762195966683,0.49435,3641.7,3641.6,0.49437]
[1762195966884,0.49437,3641.6,3641.4,0.49439]
[1762195967082,0.49437,3641.6,3641.4,0.78319]
[1762195967280,0.18139599,3642.0,3641.4,0.78319]
[1762195967281,0.00289599,3642.0,3641.9,0.49432]
[1762195967480,0.65296063,3642.0,3641.9,0.78312]
[1762195968077,1.14727063,3642.0,3641.9,0.2888]
[1762195968477,0.49432,3641.9,3641.8,0.49434]
[1762195968683,1.14438464,3641.9,3641.8,0.49434]
[1762195968880,0.65006464,3641.9,3641.8,0.49434]
[1762195969083,1.14438464,3641.9,3641.8,0.49434]
[1762195969677,0.65006464,3641.9,3641.8,0.49434]
[1762195970082,0.49721599,3642.0,3641.9,0.49433]
[1762195970280,0.00289599,3642.0,3641.9,0.78313]
[1762195971681,0.00289599,3642.0,3641.8,3.2078]
[1762195971682,0.78933,3641.9,3641.8,3.2078]
[1762195971875,0.49435,3641.7,3641.6,0.49435]
[1762195972080,0.49434,3641.8,3641.7,0.49435]
[1762195972276,0.49435,3641.8,3641.7,0.49435]
[1762195972679,0.18139599,3642.0,3641.4,4.44378]
[1762195972984,0.00289599,3642.0,3641.5,0.1646]
[1762195973184,0.49433,3641.9,3641.7,0.49435]
[1762195973378,0.49434,3641.8,3641.6,0.49436]
[1762195973584,0.49721599,3642.0,3641.8,0.49433]
[1762195975182,0.00289599,3642.0,3641.9,0.2888]
[1762195975885,0.18139599,3642.0,3641.5,0.1646]
[1762195976589,0.49434,3641.8,3641.7,0.49435]
[1762195976886,0.49434,3641.8,3641.5,0.1646]
[1762195976887,0.49434,3641.8,3641.6,0.49436]
[1762195977291,0.67571599,3642.0,3641.8,0.49434]
[1762195977486,0.49434,3641.8,3641.6,0.49435]
[1762195977791,0.49438,3641.6,3641.4,3.70219]
[1762195977987,0.49435,3641.8,3641.6,0.49436]
[1762195978187,0.49437,3641.6,3641.4,3.2078]
[1762195978891,0.49437,3641.6,3640.4,1.23632]
[1762195978892,0.1585,3641.5,3641.0,0.49445]
[1762195979485,0.49442,3641.2,3641.0,0.49445]
[1762195979891,0.49443,3641.1,3641.0,0.49445]
[1762195980590,0.49443,3641.1,3640.9,3.2078]
[1762195980782,0.78945,3641.0,3640.9,3.2078]
[1762195980990,0.49443,3641.2,3640.9,3.2078]
[1762195982092,0.49443,3641.2,3641.1,0.49443]
[1762195982694,0.49443,3641.2,3641.1,0.78323]
[1762195982993,0.49443,3641.2,3641.1,0.2888]
[1762195983186,0.49445,3641.0,3640.9,3.70225]
[1762195983382,0.49445,3641.0,3640.9,3.99105]
[1762195983590,0.295,3640.9,3640.5,3.21076035]
[1762195983790,0.7895,3640.6,3640.5,3.21076035]
[1762195984094,0.7895,3640.6,3640.5,0.00296035]
[1762195985591,0.295,3640.6,3640.5,0.00296035]
[1762195985797,3.2078,3641.3,3640.9,0.49445]
[1762195985990,0.49447,3640.9,3640.8,0.49447]
[1762195986191,0.295,3640.6,3640.5,3.21076035]
[1762195986494,0.7895,3640.6,3640.5,3.21076035]
[1762195986690,0.7895,3640.6,3640.5,0.00296035]
[1762195987089,0.4945,3640.6,3640.5,0.00296035]
[1762195987898,0.4945,3640.6,3640.5,0.49748035]
[1762195988298,0.7895,3640.6,3640.5,0.00296035]
[1762195988697,0.1785,3641.0,3640.7,0.49449]
[1762195988999,1.23592,3641.6,3640.7,0.49449]
[1762195989000,0.49443,3641.2,3641.0,0.49445]
[1762195989602,4.44372,3641.6,3641.3,0.2888]
[1762195989603,3.70218,3641.6,3641.3,0.2888]
[1762195989898,0.00289599,3642.0,3641.7,0.78315]
[1762195990092,0.00289599,3642.0,3641.5,0.1646]
[1762195990093,0.49433,3641.9,3641.8,0.78314]
[1762195990297,0.00289599,3642.0,3641.9,0.78313]
[1762195990599,3.2078,3642.6,3642.5,0.2888]
[1762195990796,3.2078,3642.6,3641.9,3.2078]
[1762195991095,0.49432,3642.0,3641.6,0.49437]
[1762195991294,0.49433,3641.9,3641.7,0.49435]
[1762195991492,0.49771484,3641.9,3641.7,0.49435]
[1762195991688,0.49435,3641.8,3641.7,0.2888]
[1762195991899,0.00338484,3641.9,3641.1,3.2078]
[1762195991900,0.49442,3641.2,3641.1,3.2078]
[1762195992096,0.49446,3640.9,3640.8,1.96417655]
[1762195992289,3.2078,3641.6,3640.8,0.4142]
[1762195992494,3.2078,3641.6,3641.5,0.2888]
[1762195992900,0.49435,3641.7,3641.5,0.2888]
[1762195993097,0.00338484,3641.9,3641.5,0.2888]
[1762195993695,0.49434,3641.8,3641.7,0.2888]
[1762195994099,0.49436,3641.7,3641.5,0.49437]
[1762195994402,0.00338484,3641.9,3641.1,3.2078]
[1762195994597,0.49437,3641.6,3641.4,0.49439]
[1762195995396,0.00338484,3641.9,3641.2,0.49441]
[1762195995702,0.49439,3641.5,3641.4,0.2888]